fUST/lending_fUST_20240721
["ID","MTS","AMOUNT","RATE_DAILY","PERIOD"]
[332777027,1721515843374,-500.0,0.00013698,2]
[332777028,1721515843384,-500.0,0.00013698,2]
[332777029,1721515843394,-500.0,0.00013698,2]
[332777030,1721515843403,-605.1,0.00013698,2]
[332777031,1721515843412,-500.0,0.00013698,2]
[332777032,1721515843421,-500.0,0.00013698,2]
[332777033,1721515843431,-500.0,0.00013698,2]
[332777034,1721515843440,-1100.85,0.00013698,2]
[332777035,1721515843450,-527.56,0.00013698,2]
[332777036,1721515843460,-611.11,0.00013698,2]
[332777037,1721515843471,-500.0,0.00013698,2]
[332777038,1721515843480,-500.0,0.00013698,2]
[332777040,1721515843490,-539.75121852,0.00013698,2]
[332777041,1721515843500,-1288.79,0.00013698,2]
[332777042,1721515843509,-500.0,0.00013698,2]
[332777043,1721515843518,-500.0,0.00013698,2]
[332777044,1721515843528,-1993.06,0.00013698,2]
[332777045,1721515843537,-500.0,0.00013698,2]
[332777046,1721515843546,-500.0,0.00013698,2]
[332777047,1721515843557,-500.0,0.00013698,2]
[332777048,1721515843568,-500.0,0.00013698,2]
[332777049,1721515843577,-1023.3,0.00013698,2]
[332777050,1721515843587,-500.0,0.00013698,2]
[332777051,1721515843596,-500.0,0.00013698,2]
[332777052,1721515843606,-578.84,0.00013698,2]
[332777053,1721515843615,-500.0,0.00013698,2]
[332777054,1721515843624,-525.8,0.00013698,2]
[332777055,1721515843633,-500.0,0.00013698,2]
[332777056,1721515843642,-1806.49,0.00013698,2]
[332777057,1721515843652,-745.8,0.00013698,2]
[332777058,1721515843662,-281.9230277,0.00013698,2]
[332777059,1721515843673,-500.0,0.00013698,2]
[332777060,1721515843683,-500.0,0.00013698,2]
[332777061,1721515843694,-500.0,0.00013698,2]
[332777062,1721515843704,-500.0,0.00013698,2]
[332777063,1721515843715,-504.1571818,0.00013698,2]
[332777064,1721515843724,-601.52472544,0.00013698,2]
[332777065,1721515843733,-581.15,0.00013698,2]
[332777066,1721515843743,-14423.94,0.00013698,2]
[332777067,1721515843754,-7713.81,0.00013698,2]
[332777068,1721515843766,-3207.58,0.00013698,2]
[332777069,1721515843775,-503.55316172,0.00013698,2]
[332777070,1721515843786,-502.96509409,0.00013698,2]
[332777071,1721515843795,-802.93,0.00013698,2]
[332777072,1721515843805,-500.0,0.00013698,2]
[332777073,1721515843815,-500.0,0.00013698,2]
[332777074,1721515843827,-561.12,0.00013698,2]
[332777075,1721515843837,-500.0,0.00013698,2]
[332777076,1721515843847,-500.0,0.00013698,2]
[332777077,1721515843859,-1558.75,0.00013698,2]
[332777078,1721515843870,-2373.66,0.00013698,2]
[332777079,1721515843879,-500.0,0.00013698,2]
[332777080,1721515843889,-4448.37,0.00013698,2]
[332777081,1721515843899,-1854.98,0.00013698,2]
[332777082,1721515843909,-501.52214706,0.00013698,2]
[332777083,1721515843919,-500.0,0.00013698,2]
[332777084,1721515843929,-500.0,0.00013698,2]
[332777085,1721515843939,-500.0,0.00013698,2]
[332777086,1721515843950,-500.0,0.00013698,2]
[332777087,1721515843962,-3905.1,0.00013698,2]
[332777088,1721515843972,-500.0,0.00013698,2]
[332777089,1721515843983,-500.0,0.00013698,2]
[332777090,1721515843992,-501.87281258,0.00013698,2]
[332777091,1721515844002,-500.0,0.00013698,2]
[332777092,1721515844011,-2653.34,0.00013698,2]
[332777093,1721515844023,-500.0,0.00013698,2]
[332777094,1721515844032,-230.09197719,0.00013698,2]
[332777095,1721515844042,-500.0,0.00013698,2]
[332777096,1721515844055,-152.04201885,0.00013698,2]
[332777097,1721515844067,-472.43097194,0.00013698,2]
[332777098,1721515844076,-502.61155734,0.00013698,2]
[332777099,1721515844090,-500.0,0.00013698,2]
[332777100,1721515844099,-507.81365659,0.00013698,2]
[332777101,1721515844110,-2465.44,0.00013698,2]
[332777102,1721515844120,-503.2814085,0.00013698,2]
[332777103,1721515844130,-1669.5,0.00013698,2]
[332777104,1721515844142,-500.0,0.00013698,2]
[332777105,1721515844153,-500.0,0.00013698,2]
[332777106,1721515844163,-6833.98,0.00013698,2]
[332777107,1721515844173,-4240.69,0.00013698,2]
[332777108,1721515844183,-400.0,0.00013698,2]
[332777109,1721515844192,-500.0,0.00013698,2]
[332777110,1721515844202,-500.0,0.00013698,2]
[332777111,1721515844211,-500.0,0.00013698,2]
[332777112,1721515844220,-500.0,0.00013698,2]
[332777113,1721515844230,-500.0,0.00013698,2]
[332777114,1721515844239,-500.0,0.00013698,2]
[332777115,1721515844248,-500.0,0.00013698,2]
[332777116,1721515844258,-2672.62,0.00013698,2]
[332777117,1721515844267,-500.0,0.00013698,2]
[332777118,1721515844278,-52.51580868,0.00013698,2]
[332777121,1721515844888,-341.9273687,0.00013698,2]
[332777122,1721515845185,-126.50462112,0.00013698,2]
[332777123,1721515845196,-500.0,0.00013698,2]
[332777124,1721515845206,-495.58565603,0.00013698,2]
[332777125,1721515845217,-348.20974514,0.00013698,2]
[332777126,1721515845656,-2322.36025486,0.00013698,2]
[332777127,1721515845677,-2210.64,0.00013698,2]
[332777128,1721515845688,-500.0,0.00013698,2]
[332777129,1721515845699,-1149.78,0.00013698,2]
[332777130,1721515845709,-590.53,0.00013698,2]
[332777131,1721515845719,-500.0,0.00013698,2]
[332777132,1721515845728,-500.0,0.00013698,2]
[332777133,1721515845739,-500.0,0.00013698,2]
[332777134,1721515845749,-537.16736481,0.00013698,2]
[332777135,1721515845759,-500.0,0.00013698,2]
[332777136,1721515845770,-500.0,0.00013698,2]
[332777137,1721515845781,-500.0,0.00013698,2]
[332777138,1721515845793,-505.50910385,0.00013698,2]
[332777139,1721515845803,-500.0,0.00013698,2]
[332777140,1721515845813,-245.08411045,0.00013698,2]
[332777141,1721515845823,-500.0,0.00013698,2]
[332777142,1721515845832,-500.0,0.00013698,2]
[332777143,1721515845842,-938.16,0.00013698,2]
[332777144,1721515845852,-500.0,0.00013698,2]
[332777145,1721515845861,-507.42940929,0.00013698,2]
[332777146,1721515845870,-500.0,0.00013698,2]
[332777148,1721515845880,-500.0,0.00013698,2]
[332777149,1721515845889,-1015.87,0.00013698,2]
[332777150,1721515845899,-500.0,0.00013698,2]
[332777151,1721515845909,-880.9,0.00013698,2]
[332777152,1721515845920,-500.0,0.00013698,2]
[332777153,1721515845929,-500.0,0.00013698,2]
[332777154,1721515845939,-547.02,0.00013698,2]
[332777155,1721515845949,-505.06029945,0.00013698,2]
[332777156,1721515845961,-1036.02,0.00013698,2]
[332777157,1721515845971,-624.28,0.00013698,2]
[332777158,1721515845982,-500.0,0.00013698,2]
[332777159,1721515845992,-500.0,0.00013698,2]
[332777160,1721515846001,-500.0,0.00013698,2]
[332777161,1721515846012,-9430.49,0.00013698,2]
[332777162,1721515846022,-500.0,0.00013698,2]
[332777163,1721515846033,-500.0,0.00013698,2]
[332777164,1721515846043,-150.0,0.00013698,2]
[332777165,1721515846057,-500.0,0.00013698,2]
[332777166,1721515846066,-500.0,0.00013698,2]
[332777167,1721515846076,-8141.08,0.00013698,2]
[332777168,1721515846087,-500.0,0.00013698,2]
[332777169,1721515846097,-643.14853421,0.00013698,2]
[332777170,1721515846106,-539.10656031,0.00013698,2]
[332777171,1721515846116,-503.66601758,0.00013698,2]
[332777172,1721515846125,-500.0,0.00013698,2]
[332777173,1721515846137,-953.17,0.00013698,2]
[332777174,1721515846146,-500.0,0.00013698,2]
[332777175,1721515846156,-1218.53,0.00013698,2]
[332777176,1721515846167,-2275.46,0.00013698,2]
[332777177,1721515846177,-553.50441881,0.00013698,2]
[332777178,1721515846186,-500.0,0.00013698,2]
[332777179,1721515846196,-503.08165892,0.00013698,2]
[332777180,1721515846206,-500.0,0.00013698,2]
[332777181,1721515846215,-500.0,0.00013698,2]
[332777182,1721515846225,-533.97409384,0.00013698,2]
[332777184,1721515846235,-1745.27,0.00013698,2]
[332777186,1721515846245,-500.0,0.00013698,2]
[332777188,1721515846256,-500.0,0.00013698,2]
[332777189,1721515846265,-516.65,0.00013698,2]
[332777191,1721515846275,-1229.88,0.00013698,2]
[332777192,1721515846285,-1253.92,0.00013698,2]
[332777193,1721515846294,-729.97,0.00013698,2]
[332777194,1721515846305,-500.0,0.00013698,2]
[332777195,1721515846315,-2361.83,0.00013698,2]
[332777197,1721515846324,-736.3,0.00013698,2]
[332777199,1721515846334,-500.0,0.00013698,2]
[332777201,1721515846344,-500.0,0.00013698,2]
[332777202,1721515846354,-28521.82,0.00013698,2]
[332777204,1721515846363,-1348.44,0.00013698,2]
[332777206,1721515846373,-500.0,0.00013698,2]
[332777208,1721515846382,-2679.73,0.00013698,2]
[332777210,1721515846392,-500.0,0.00013698,2]
[332777212,1721515846402,-500.0,0.00013698,2]
[332777213,1721515846411,-183.21500843,0.00013698,2]
[332777214,1721515846421,-998.59,0.00013698,2]
[332777215,1721515846431,-500.0,0.00013698,2]
[332777216,1721515846441,-2051.01,0.00013698,2]
[332777217,1721515846451,-500.0,0.00013698,2]
[332777218,1721515846461,-500.0,0.00013698,2]
[332777219,1721515846470,-568.38256445,0.00013698,2]
[332777220,1721515846479,-500.0,0.00013698,2]
[332777222,1721515846489,-500.0,0.00013698,2]
[332777224,1721515846498,-500.0,0.00013698,2]
[332777225,1721515846508,-500.0,0.00013698,2]
[332777226,1721515846517,-500.0,0.00013698,2]
[332777227,1721515846527,-503.63206823,0.00013698,2]
[332777228,1721515846537,-500.0,0.00013698,2]
[332777229,1721515846546,-2444.67,0.00013698,2]
[332777230,1721515846556,-500.0,0.00013698,2]
[332777231,1721515846565,-2110.6,0.00013698,2]
[332777232,1721515846575,-518.0540431,0.00013698,2]
[332777234,1721515846584,-500.0,0.00013698,2]
[332777235,1721515846593,-500.0,0.00013698,2]
[332777236,1721515846603,-511.02144314,0.00013698,2]
[332777237,1721515846612,-500.0,0.00013698,2]
[332777238,1721515846622,-500.0,0.00013698,2]
[332777239,1721515846632,-500.0,0.00013698,2]
[332777240,1721515846641,-940.86,0.00013698,2]
[332777241,1721515846651,-501.00204309,0.00013698,2]
[332777242,1721515846661,-500.0,0.00013698,2]
[332777243,1721515846670,-12017.34,0.00013698,2]
[332777244,1721515846679,-707.16,0.00013698,2]
[332777245,1721515846688,-899.75,0.00013698,2]
[332777246,1721515846697,-529.10046022,0.00013698,2]
[332777248,1721515846707,-500.0,0.00013698,2]
[332777249,1721515846716,-500.0,0.00013698,2]
[332777251,1721515846725,-500.0,0.00013698,2]
[332777252,1721515846734,-529.26846187,0.00013698,2]
[332777253,1721515846744,-513.33275701,0.00013698,2]
[332777254,1721515846753,-542.0321779,0.00013698,2]
[332777255,1721515846762,-2146.21,0.00013698,2]
[332777256,1721515846771,-500.0,0.00013698,2]
[332777257,1721515846780,-500.0,0.00013698,2]
[332777258,1721515846792,-504.75268794,0.00013698,2]
[332777259,1721515846801,-792.43,0.00013698,2]
[332777260,1721515846810,-500.0,0.00013698,2]
[332777261,1721515846820,-500.0,0.00013698,2]
[332777262,1721515846829,-997.42,0.00013698,2]
[332777263,1721515846839,-516.73,0.00013698,2]
[332777264,1721515846848,-1793.12,0.00013698,2]
[332777265,1721515846857,-500.0,0.00013698,2]
[332777266,1721515846867,-1114.06,0.00013698,2]
[332777267,1721515846876,-500.0,0.00013698,2]
[332777268,1721515846885,-500.0,0.00013698,2]
[332777269,1721515846895,-502.32137402,0.00013698,2]
[332777270,1721515846904,-1841.33,0.00013698,2]
[332777271,1721515846913,-1197.4,0.00013698,2]
[332777272,1721515846923,-570.97671348,0.00013698,2]
[332777273,1721515846932,-500.0,0.00013698,2]
[332777274,1721515846941,-500.0,0.00013698,2]
[332777275,1721515846950,-500.0,0.00013698,2]
[332777276,1721515846960,-500.89252704,0.00013698,2]
[332777277,1721515846969,-500.0,0.00013698,2]
[332777278,1721515846979,-1975.61,0.00013698,2]
[332777279,1721515846988,-177.63610695,0.00013698,2]
[332777280,1721515846997,-6790.7,0.00013698,2]
[332777281,1721515847006,-3000.0,0.00013699,2]
[332777282,1721515847016,-2312.467759,0.00013699,2]
[332777283,1721515847026,-349.3564339,0.00013699,2]
[332777284,1721515847035,-1232.2799058,0.00013699,2]
[332777285,1721515847047,-153.0,0.00013699,2]
[332777286,1721515847056,-153.0,0.00013699,2]
[332777287,1721515847069,-153.0,0.00013699,2]
[332777288,1721515847093,-153.0,0.00013699,2]
[332777289,1721515847121,-153.0,0.00013699,2]
[332777290,1721515847147,-6049.07126337,0.000139,2]
[332777291,1721515847252,-9383.15849798,0.000139,2]
[332777292,1721515847576,-2012.29053674,0.000139,2]
[332777293,1721515847588,-4053.19826832,0.000139,2]
[332777294,1721515847599,-1449.07557445,0.000139,2]
[332777295,1721515847811,-458.17298887,0.000139,2]
[332777297,1721515936521,196.15176283,9.999e-05,2]
[332777301,1721515956866,210.43288736,9.999e-05,2]
[332777302,1721515991956,500.0,0.00025,120]
[332777303,1721516003594,3000.0,0.000225,30]
[332777305,1721516056322,452.05097038,0.000249,120]
[332777307,1721516597915,3000.0,0.000225,30]
[332777308,1721516807178,309.38124447,9.999e-05,2]
[332777309,1721516852758,287.58562921,9.999e-05,2]
[332777310,1721516912298,502.85,0.00025,120]
[332777322,1721517033751,-300.0,0.00010124,2]
[332777323,1721517033762,-300.0,0.00010124,2]
[332777324,1721517033772,-380.3,0.00010959,2]
[332777325,1721517033782,-15309.35256148,0.00011027,2]
[332777355,1721517038743,-9590.64743852,0.00011027,2]
[332777357,1721517038753,-250.0,0.000111,2]
[332777358,1721517038763,-420.0,0.00011136,2]
[332777360,1721517038773,-183.725078,0.00011728,2]
[332777362,1721517038783,-183.725078,0.0001176,2]
[332777364,1721517038794,-183.725078,0.00011792,2]
[332777365,1721517038804,-183.725078,0.00011825,2]
[332777367,1721517038814,-183.725078,0.00011857,2]
[332777368,1721517038824,-183.725078,0.00011889,2]
[332777369,1721517038834,-183.725078,0.00011921,2]
[332777370,1721517038844,-183.725078,0.00011953,2]
[332777372,1721517038858,-183.725078,0.00011985,2]
[332777374,1721517038868,-183.725078,0.00012018,2]
[332777375,1721517038878,-183.725078,0.0001205,2]
[332777377,1721517038888,-183.725078,0.00012082,2]
[332777379,1721517038898,-183.725078,0.00012114,2]
[332777381,1721517038908,-500.61107229,0.00012119,2]
[332777383,1721517038918,-183.725078,0.00012146,2]
[332777385,1721517038928,-183.725078,0.00012178,2]
[332777386,1721517038938,-183.725078,0.00012211,2]
[332777388,1721517038948,-183.725078,0.00012243,2]
[332777390,1721517038958,-587.0,0.0001225,2]
[332777391,1721517038968,-183.725078,0.00012275,2]
[332777393,1721517038978,-183.725078,0.00012307,2]
[332777395,1721517038988,-183.725078,0.00012339,2]
[332777397,1721517038998,-5303.4494987,0.0001345,2]
[332777398,1721517039008,-823.0,0.00013475,2]
[332777400,1721517039020,-957.5995599,0.00013596,2]
[332777401,1721517039030,-957.59955989,0.00013597,2]
[332777402,1721517039040,-957.59955989,0.00013597,2]
[332777403,1721517039051,-957.59955989,0.00013598,2]
[332777404,1721517039060,-1259.41614984,0.00013598,2]
[332777406,1721517039071,-957.59955989,0.00013598,2]
[332777408,1721517039080,-2000.0,0.00013598,2]
[332777409,1721517039090,-628.09916781,0.00013631,2]
[332777410,1721517039100,-367.31035882,0.00013647,2]
[332777411,1721517039110,-271522.218912,0.00013688,2]
[332777412,1721517039120,-153.0,0.00013696,2]
[332777413,1721517039130,-153.0,0.00013696,2]
[332777414,1721517039139,-153.0,0.00013696,2]
[332777415,1721517039149,-153.0,0.00013696,2]
[332777416,1721517039159,-306.0,0.00013696,2]
[332777417,1721517039168,-306.0,0.00013696,2]
[332777418,1721517039179,-500.0,0.00013698,2]
[332777419,1721517039188,-500.0,0.00013698,2]
[332777420,1721517039198,-500.0,0.00013698,2]
[332777421,1721517039208,-500.0,0.00013698,2]
[332777422,1721517039218,-250.0,0.00013698,2]
[332777423,1721517039228,-225.0,0.00013698,2]
[332777424,1721517039238,-500.0,0.00013698,2]
[332777425,1721517039248,-500.0,0.00013698,2]
[332777426,1721517039258,-500.0,0.00013698,2]
[332777427,1721517039271,-228.13644181,0.00013698,2]
[332777428,1721517039281,-500.0,0.00013698,2]
[332777429,1721517039291,-500.0,0.00013698,2]
[332777430,1721517039301,-500.0,0.00013698,2]
[332777431,1721517039312,-500.0,0.00013698,2]
[332777432,1721517039321,-300.0,0.00013698,2]
[332777433,1721517039331,-500.0,0.00013698,2]
[332777434,1721517039341,-500.0,0.00013698,2]
[332777435,1721517039351,-176.68827515,0.00013698,2]
[332777436,1721517039361,-500.0,0.00013698,2]
[332777437,1721517039371,-500.0,0.00013698,2]
[332777438,1721517039381,-477.03495023,0.00013698,2]
[332777439,1721517039391,-500.0,0.00013698,2]
[332777440,1721517039400,-500.0,0.00013698,2]
[332777441,1721517039410,-500.0,0.00013698,2]
[332777442,1721517039420,-500.0,0.00013698,2]
[332777443,1721517039430,-500.0,0.00013698,2]
[332777444,1721517039440,-650.0,0.00013698,2]
[332777445,1721517039450,-340.36455265,0.00013698,2]
[332777446,1721517039460,-500.0,0.00013698,2]
[332777447,1721517039469,-500.0,0.00013698,2]
[332777448,1721517039484,-500.0,0.00013698,2]
[332777449,1721517039494,-500.0,0.00013698,2]
[332777450,1721517039504,-500.0,0.00013698,2]
[332777451,1721517039517,-500.0,0.00013698,2]
[332777452,1721517039527,-500.0,0.00013698,2]
[332777453,1721517039537,-500.0,0.00013698,2]
[332777454,1721517039547,-500.0,0.00013698,2]
[332777455,1721517039557,-500.0,0.00013698,2]
[332777456,1721517039566,-500.0,0.00013698,2]
[332777457,1721517039577,-500.0,0.00013698,2]
[332777458,1721517039587,-291.72929158,0.00013698,2]
[332777459,1721517039597,-457.58350401,0.00013698,2]
[332777460,1721517039607,-500.0,0.00013698,2]
[332777461,1721517039617,-500.0,0.00013698,2]
[332777462,1721517039627,-500.0,0.00013698,2]
[332777463,1721517039638,-500.0,0.00013698,2]
[332777464,1721517039647,-500.0,0.00013698,2]
[332777465,1721517039657,-500.0,0.00013698,2]
[332777466,1721517039668,-520.8514786,0.00013698,2]
[332777467,1721517039678,-714.7,0.00013698,2]
[332777468,1721517039689,-500.0,0.00013698,2]
[332777469,1721517039699,-513.48,0.00013698,2]
[332777470,1721517039708,-500.0,0.00013698,2]
[332777471,1721517039718,-500.0,0.00013698,2]
[332777472,1721517039728,-1835.24,0.00013698,2]
[332777473,1721517039738,-500.0,0.00013698,2]
[332777474,1721517039748,-500.0,0.00013698,2]
[332777475,1721517039759,-500.0,0.00013698,2]
[332777476,1721517039770,-500.0,0.00013698,2]
[332777477,1721517039780,-500.0,0.00013698,2]
[332777478,1721517039791,-500.0,0.00013698,2]
[332777479,1721517039802,-500.0,0.00013698,2]
[332777480,1721517039811,-500.0,0.00013698,2]
[332777481,1721517039821,-500.0,0.00013698,2]
[332777482,1721517039831,-507.89472845,0.00013698,2]
[332777483,1721517039841,-500.0,0.00013698,2]
[332777484,1721517039853,-511.47376649,0.00013698,2]
[332777485,1721517039863,-367.30137337,0.00013698,2]
[332777486,1721517039873,-500.0,0.00013698,2]
[332777487,1721517039883,-500.0,0.00013698,2]
[332777488,1721517039894,-500.0,0.00013698,2]
[332777489,1721517039904,-849.35,0.00013698,2]
[332777490,1721517039915,-500.0,0.00013698,2]
[332777491,1721517039925,-1072.6,0.00013698,2]
[332777492,1721517039934,-500.0,0.00013698,2]
[332777493,1721517039944,-500.0,0.00013698,2]
[332777494,1721517039954,-529.4,0.00013698,2]
[332777495,1721517039966,-502.09315046,0.00013698,2]
[332777496,1721517039976,-517.40359857,0.00013698,2]
[332777497,1721517039986,-502.3541028,0.00013698,2]
[332777498,1721517039996,-500.0,0.00013698,2]
[332777499,1721517040006,-546.4,0.00013698,2]
[332777500,1721517040017,-500.0,0.00013698,2]
[332777501,1721517040027,-500.0,0.00013698,2]
[332777502,1721517040036,-500.0,0.00013698,2]
[332777503,1721517040046,-500.0,0.00013698,2]
[332777504,1721517040056,-500.0,0.00013698,2]
[332777505,1721517040066,-500.0,0.00013698,2]
[332777506,1721517040076,-1425.36,0.00013698,2]
[332777507,1721517040085,-500.0,0.00013698,2]
[332777508,1721517040095,-500.0,0.00013698,2]
[332777509,1721517040104,-500.0,0.00013698,2]
[332777510,1721517040115,-500.0,0.00013698,2]
[332777511,1721517040125,-500.96592398,0.00013698,2]
[332777512,1721517040135,-501.18646479,0.00013698,2]
[332777513,1721517040144,-526.48973884,0.00013698,2]
[332777514,1721517040154,-791.69,0.00013698,2]
[332777515,1721517040165,-500.0,0.00013698,2]
[332777516,1721517040174,-500.0,0.00013698,2]
[332777518,1721517040184,-518.04290527,0.00013698,2]
[332777520,1721517040194,-500.0,0.00013698,2]
[332777522,1721517040205,-500.0,0.00013698,2]
[332777524,1721517040214,-500.0,0.00013698,2]
[332777526,1721517040224,-500.0,0.00013698,2]
[332777528,1721517040234,-500.0,0.00013698,2]
[332777530,1721517040244,-517.43758687,0.00013698,2]
[332777532,1721517040258,-500.0,0.00013698,2]
[332777534,1721517040270,-500.0,0.00013698,2]
[332777536,1721517040281,-500.0,0.00013698,2]
[332777538,1721517040291,-500.0,0.00013698,2]
[332777540,1721517040300,-500.0,0.00013698,2]
[332777542,1721517040310,-516.86201681,0.00013698,2]
[332777544,1721517040320,-500.0,0.00013698,2]
[332777546,1721517040331,-500.0,0.00013698,2]
[332777549,1721517040341,-196.7156269,0.00013698,2]
[332777552,1721517040352,-808.49,0.00013698,2]
[332777554,1721517040361,-500.0,0.00013698,2]
[332777556,1721517040371,-500.0,0.00013698,2]
[332777558,1721517040381,-500.0,0.00013698,2]
[332777561,1721517040391,-500.0,0.00013698,2]
[332777563,1721517040402,-509.13,0.00013698,2]
[332777565,1721517040411,-883.84,0.00013698,2]
[332777567,1721517040421,-500.0,0.00013698,2]
[332777569,1721517040431,-871.83,0.00013698,2]
[332777571,1721517040442,-500.0,0.00013698,2]
[332777573,1721517040453,-385.19141454,0.00013698,2]
[332777575,1721517040464,-500.0,0.00013698,2]
[332777577,1721517040474,-500.0,0.00013698,2]
[332777579,1721517040484,-501.14861689,0.00013698,2]
[332777581,1721517040494,-500.0,0.00013698,2]
[332777583,1721517040504,-467.37329043,0.00013698,2]
[332777585,1721517040517,-459.30582877,0.00013698,2]
[332777588,1721517040527,-500.0,0.00013698,2]
[332777590,1721517040540,-1431.41,0.00013698,2]
[332777592,1721517040551,-456.093618,0.00013698,2]
[332777594,1721517040560,-413.72043881,0.00013698,2]
[332777596,1721517040570,-500.0,0.00013698,2]
[332777597,1721517040581,-606.46,0.00013698,2]
[332777599,1721517040590,-1931.83,0.00013698,2]
[332777601,1721517040600,-500.0,0.00013698,2]
[332777603,1721517040609,-500.0,0.00013698,2]
[332777605,1721517040618,-500.0,0.00013698,2]
[332777607,1721517040628,-500.0,0.00013698,2]
[332777609,1721517040637,-500.0,0.00013698,2]
[332777611,1721517040647,-500.0,0.00013698,2]
[332777613,1721517040657,-500.0,0.00013698,2]
[332777615,1721517040666,-500.0,0.00013698,2]
[332777617,1721517040676,-936.78,0.00013698,2]
[332777619,1721517040686,-151.0,0.00013698,2]
[332777621,1721517040697,-548.75997375,0.00013698,2]
[332777623,1721517040707,-190.88335774,0.00013698,2]
[332777625,1721517040716,-707.35,0.00013698,2]
[332777627,1721517040726,-500.0,0.00013698,2]
[332777629,1721517040736,-500.3265989,0.00013698,2]
[332777632,1721517040747,-809.2,0.00013698,2]
[332777634,1721517040757,-500.0,0.00013698,2]
[332777636,1721517040769,-500.0,0.00013698,2]
[332777638,1721517040779,-500.0,0.00013698,2]
[332777640,1721517040789,-791.06,0.00013698,2]
[332777642,1721517040799,-571.89745073,0.00013698,2]
[332777644,1721517040810,-500.0,0.00013698,2]
[332777646,1721517040821,-505.76262032,0.00013698,2]
[332777648,1721517040831,-500.0,0.00013698,2]
[332777650,1721517040842,-243.73701742,0.00013698,2]
[332777652,1721517040855,-500.0,0.00013698,2]
[332777654,1721517040865,-1045.36,0.00013698,2]
[332777656,1721517040875,-500.0,0.00013698,2]
[332777658,1721517040885,-500.0,0.00013698,2]
[332777660,1721517040895,-509.27639716,0.00013698,2]
[332777662,1721517040905,-1198.63,0.00013698,2]
[332777664,1721517040915,-744.77,0.00013698,2]
[332777666,1721517040925,-504.29336531,0.00013698,2]
[332777668,1721517040935,-500.0,0.00013698,2]
[332777670,1721517040946,-500.0,0.00013698,2]
[332777672,1721517040956,-500.0,0.00013698,2]
[332777674,1721517040966,-500.0,0.00013698,2]
[332777676,1721517040976,-500.0,0.00013698,2]
[332777678,1721517040986,-500.0,0.00013698,2]
[332777680,1721517040996,-500.0,0.00013698,2]
[332777683,1721517041006,-500.0,0.00013698,2]
[332777685,1721517041021,-500.0,0.00013698,2]
[332777687,1721517041031,-500.0,0.00013698,2]
[332777689,1721517041040,-500.0,0.00013698,2]
[332777691,1721517041051,-500.0,0.00013698,2]
[332777693,1721517041060,-500.7278879,0.00013698,2]
[332777695,1721517041070,-500.0,0.00013698,2]
[332777697,1721517041079,-500.0,0.00013698,2]
[332777698,1721517041089,-500.0,0.00013698,2]
[332777700,1721517041098,-1410.37,0.00013698,2]
[332777703,1721517041109,-500.0,0.00013698,2]
[332777705,1721517041118,-500.0,0.00013698,2]
[332777707,1721517041128,-686.24,0.00013698,2]
[332777709,1721517041138,-500.0,0.00013698,2]
[332777711,1721517041148,-500.0,0.00013698,2]
[332777713,1721517041158,-500.0,0.00013698,2]
[332777715,1721517041168,-578.61,0.00013698,2]